fUST/lending_fUST_20240906
["ID","MTS","AMOUNT","RATE_DAILY","PERIOD"]
[337333627,1725609049209,-500.0,0.00019982,2]
[337333628,1725609049218,-500.0,0.00019982,2]
[337333629,1725609049228,-500.0,0.00019982,2]
[337333630,1725609049238,-500.0,0.00019982,2]
[337333631,1725609049248,-559.4196265,0.00019982,2]
[337333632,1725609049259,-500.0,0.00019982,2]
[337333633,1725609049269,-500.0,0.00019982,2]
[337333634,1725609049279,-551.18202556,0.00019982,2]
[337333635,1725609049289,-500.0,0.00019982,2]
[337333636,1725609049302,-500.0,0.00019982,2]
[337333637,1725609049312,-500.0,0.00019982,2]
[337333638,1725609049323,-500.0,0.00019982,2]
[337333639,1725609049333,-500.0,0.00019982,2]
[337333640,1725609049343,-500.0,0.00019982,2]
[337333641,1725609049353,-500.0,0.00019982,2]
[337333642,1725609049362,-500.0,0.00019982,2]
[337333643,1725609049373,-500.0,0.00019982,2]
[337333644,1725609049383,-500.0,0.00019982,2]
[337333645,1725609049393,-500.0,0.00019982,2]
[337333646,1725609049404,-500.0,0.00019982,2]
[337333647,1725609049415,-500.0,0.00019982,2]
[337333648,1725609049424,-391.09612941,0.00019982,2]
[337333649,1725609049434,-500.0,0.00019982,2]
[337333650,1725609049445,-500.0,0.00019982,2]
[337333651,1725609049454,-500.0,0.00019982,2]
[337333652,1725609049465,-500.0,0.00019982,2]
[337333653,1725609049476,-500.0,0.00019982,2]
[337333654,1725609049485,-500.0,0.00019982,2]
[337333655,1725609049496,-500.0,0.00019982,2]
[337333656,1725609049506,-500.0,0.00019982,2]
[337333657,1725609049517,-601.38807574,0.00019982,2]
[337333658,1725609049527,-500.0,0.00019982,2]
[337333659,1725609049537,-1423.03,0.00019982,2]
[337333660,1725609049548,-500.0,0.00019982,2]
[337333661,1725609049558,-992.75,0.00019982,2]
[337333662,1725609049572,-500.0,0.00019982,2]
[337333663,1725609049594,-500.0,0.00019982,2]
[337333664,1725609049612,-259.44947803,0.00019982,2]
[337333665,1725609049632,-2590.45,0.00019982,2]
[337333666,1725609049653,-500.0,0.00019982,2]
[337333667,1725609049673,-307.3271605,0.00019982,2]
[337333668,1725609049692,-1259.32,0.00019982,2]
[337333669,1725609049709,-500.0,0.00019982,2]
[337333670,1725609049725,-500.0,0.00019982,2]
[337333671,1725609049743,-500.0,0.00019982,2]
[337333672,1725609049765,-500.0,0.00019982,2]
[337333673,1725609049781,-1468.26,0.00019982,2]
[337333674,1725609049793,-500.0,0.00019982,2]
[337333675,1725609049813,-500.0,0.00019982,2]
[337333676,1725609049830,-500.0,0.00019982,2]
[337333677,1725609049847,-500.0,0.00019982,2]
[337333678,1725609049861,-1261.47,0.00019982,2]
[337333679,1725609049876,-500.0,0.00019982,2]
[337333680,1725609049893,-1797.43,0.00019982,2]
[337333681,1725609049910,-500.0,0.00019982,2]
[337333682,1725609049927,-500.0,0.00019982,2]
[337333683,1725609049943,-500.0,0.00019982,2]
[337333684,1725609049961,-1588.66,0.00019982,2]
[337333685,1725609049977,-500.0,0.00019982,2]
[337333686,1725609049993,-2414.58,0.00019982,2]
[337333687,1725609050009,-1307.68,0.00019982,2]
[337333688,1725609050025,-1517.37,0.00019982,2]
[337333689,1725609050040,-501.73431511,0.00019982,2]
[337333690,1725609050059,-500.0,0.00019982,2]
[337333691,1725609050075,-787.29,0.00019982,2]
[337333692,1725609050091,-332.59290113,0.00019983,2]
[337333693,1725609050107,-526.81,0.00019983,2]
[337333694,1725609050122,-500.0,0.00019983,2]
[337333695,1725609050138,-1365.94,0.00019983,2]
[337333696,1725609050153,-500.0,0.00019983,2]
[337333697,1725609050169,-1589.93,0.00019983,2]
[337333698,1725609050184,-900.09,0.00019983,2]
[337333699,1725609050199,-500.0,0.00019983,2]
[337333700,1725609050215,-500.0,0.00019983,2]
[337333701,1725609050230,-500.0,0.00019983,2]
[337333702,1725609050246,-500.0,0.00019983,2]
[337333703,1725609050260,-500.0,0.00019983,2]
[337333704,1725609050275,-500.0,0.00019983,2]
[337333705,1725609050290,-1129.05,0.00019983,2]
[337333706,1725609050305,-500.0570281,0.00019983,2]
[337333707,1725609050321,-500.0,0.00019983,2]
[337333708,1725609050338,-1666.46,0.00019983,2]
[337333709,1725609050355,-500.0,0.00019983,2]
[337333710,1725609050371,-500.0,0.00019983,2]
[337333711,1725609050385,-500.0,0.00019983,2]
[337333712,1725609050400,-501.63,0.00019983,2]
[337333713,1725609050416,-500.0,0.00019983,2]
[337333714,1725609050432,-996.26,0.00019983,2]
[337333715,1725609050446,-223.12418233,0.00019983,2]
[337333716,1725609050463,-500.0,0.00019983,2]
[337333717,1725609050479,-500.0,0.00019983,2]
[337333718,1725609050494,-500.0,0.00019983,2]
[337333719,1725609050509,-500.0,0.00019983,2]
[337333720,1725609050525,-1825.86,0.00019983,2]
[337333721,1725609050540,-500.0,0.00019983,2]
[337333722,1725609050556,-506.56367542,0.00019983,2]
[337333723,1725609050573,-500.0,0.00019983,2]
[337333724,1725609050587,-500.0,0.00019983,2]
[337333725,1725609050602,-500.0,0.00019983,2]
[337333726,1725609050617,-500.0,0.00019983,2]
[337333727,1725609050631,-500.0,0.00019983,2]
[337333728,1725609050646,-500.0,0.00019983,2]
[337333729,1725609050662,-500.0,0.00019983,2]
[337333730,1725609050677,-500.0,0.00019983,2]
[337333731,1725609050692,-500.0,0.00019983,2]
[337333732,1725609050706,-500.0,0.00019983,2]
[337333733,1725609050721,-500.0,0.00019983,2]
[337333734,1725609050737,-500.0,0.00019983,2]
[337333735,1725609050877,-500.0,0.00019983,2]
[337333736,1725609050905,-500.0,0.00019983,2]
[337333737,1725609050915,-500.0,0.00019983,2]
[337333738,1725609050924,-553.44,0.00019983,2]
[337333739,1725609050934,-1079.54,0.00019983,2]
[337333740,1725609050944,-500.0,0.00019983,2]
[337333741,1725609050953,-500.0,0.00019983,2]
[337333742,1725609050962,-500.0,0.00019983,2]
[337333743,1725609050972,-740.7,0.00019983,2]
[337333744,1725609050981,-500.0,0.00019983,2]
[337333745,1725609050991,-500.0,0.00019983,2]
[337333746,1725609051001,-500.0,0.00019983,2]
[337333747,1725609051010,-502.047019,0.00019983,2]
[337333748,1725609051020,-500.0,0.00019983,2]
[337333749,1725609051030,-500.0,0.00019983,2]
[337333750,1725609051039,-500.0,0.00019983,2]
[337333751,1725609051050,-500.0,0.00019983,2]
[337333752,1725609051060,-615.22195367,0.00019983,2]
[337333753,1725609051069,-500.0,0.00019983,2]
[337333754,1725609051079,-500.0,0.00019983,2]
[337333755,1725609051089,-500.0,0.00019983,2]
[337333756,1725609051098,-500.0,0.00019983,2]
[337333757,1725609051107,-500.0,0.00019983,2]
[337333758,1725609051117,-500.0,0.00019983,2]
[337333759,1725609051126,-500.0,0.00019983,2]
[337333760,1725609051136,-500.0,0.00019983,2]
[337333761,1725609051145,-960.33,0.00019983,2]
[337333762,1725609051154,-500.0,0.00019983,2]
[337333763,1725609051163,-500.0,0.00019983,2]
[337333764,1725609051174,-500.0,0.00019983,2]
[337333765,1725609051183,-651.51,0.00019983,2]
[337333766,1725609051192,-500.0,0.00019983,2]
[337333767,1725609051202,-1075.73,0.00019983,2]
[337333768,1725609051212,-1192.96,0.00019983,2]
[337333769,1725609051221,-500.0,0.00019983,2]
[337333770,1725609051232,-500.0,0.00019983,2]
[337333771,1725609051241,-500.0,0.00019983,2]
[337333772,1725609051250,-500.0,0.00019983,2]
[337333773,1725609051261,-500.0,0.00019983,2]
[337333774,1725609051271,-500.0,0.00019983,2]
[337333775,1725609051280,-500.0,0.00019983,2]
[337333776,1725609051289,-500.0,0.00019983,2]
[337333777,1725609051301,-500.0,0.00019983,2]
[337333778,1725609051310,-500.0,0.00019983,2]
[337333779,1725609051322,-500.0,0.00019983,2]
[337333780,1725609051331,-500.0,0.00019983,2]
[337333781,1725609051340,-2007.33,0.00019983,2]
[337333782,1725609051349,-500.0,0.00019983,2]
[337333783,1725609051358,-500.0,0.00019983,2]
[337333784,1725609051368,-500.0,0.00019983,2]
[337333785,1725609051377,-500.0,0.00019983,2]
[337333786,1725609051386,-500.0,0.00019983,2]
[337333787,1725609051397,-500.0,0.00019983,2]
[337333788,1725609051406,-500.0,0.00019983,2]
[337333789,1725609051415,-500.0,0.00019983,2]
[337333790,1725609051425,-159.82574737,0.00019983,2]
[337333791,1725609051434,-549.29,0.00019983,2]
[337333792,1725609051443,-500.0,0.00019983,2]
[337333793,1725609051452,-1089.16,0.00019983,2]
[337333794,1725609051461,-500.0,0.00019983,2]
[337333795,1725609051470,-500.0,0.00019983,2]
[337333796,1725609051479,-500.0,0.00019983,2]
[337333797,1725609051488,-828.0,0.00019983,2]
[337333798,1725609051498,-500.0,0.00019983,2]
[337333799,1725609051507,-500.0,0.00019983,2]
[337333800,1725609051517,-1150.78,0.00019983,2]
[337333801,1725609051526,-1150.78,0.00019983,2]
[337333802,1725609051535,-1150.78,0.00019983,2]
[337333803,1725609051544,-1150.78,0.00019983,2]
[337333804,1725609051554,-1150.78,0.00019983,2]
[337333805,1725609051563,-1150.78,0.00019983,2]
[337333806,1725609051572,-1150.78,0.00019983,2]
[337333807,1725609051581,-1150.78,0.00019983,2]
[337333808,1725609051590,-1150.78,0.00019983,2]
[337333809,1725609051600,-1150.78,0.00019983,2]
[337333810,1725609051609,-500.0,0.00019983,2]
[337333811,1725609051618,-1150.78,0.00019983,2]
[337333812,1725609051628,-1150.78,0.00019983,2]
[337333813,1725609051637,-1150.78,0.00019983,2]
[337333814,1725609051646,-1150.78,0.00019983,2]
[337333815,1725609051655,-1150.78,0.00019983,2]
[337333816,1725609051664,-1150.78,0.00019983,2]
[337333817,1725609051673,-1150.78,0.00019983,2]
[337333818,1725609051683,-1150.78,0.00019983,2]
[337333819,1725609051692,-1150.78,0.00019983,2]
[337333820,1725609051701,-500.0,0.00019983,2]
[337333821,1725609051711,-500.0,0.00019983,2]
[337333822,1725609051721,-500.0,0.00019983,2]
[337333823,1725609051731,-623.35291392,0.00019983,2]
[337333824,1725609051740,-500.0,0.00019983,2]
[337333825,1725609051749,-500.0,0.00019983,2]
[337333826,1725609051758,-500.0,0.00019983,2]
[337333827,1725609051768,-500.0,0.00019983,2]
[337333828,1725609051777,-500.0,0.00019983,2]
[337333829,1725609051786,-500.0,0.00019983,2]
[337333830,1725609051796,-500.0,0.00019983,2]
[337333831,1725609051806,-500.0,0.00019983,2]
[337333832,1725609051815,-500.0,0.00019983,2]
[337333833,1725609051825,-500.0,0.00019983,2]
[337333834,1725609051834,-648.83196359,0.00019983,2]
[337333835,1725609051843,-500.0,0.00019983,2]
[337333836,1725609051852,-500.0,0.00019983,2]
[337333837,1725609051861,-500.0,0.00019983,2]
[337333838,1725609051870,-500.0,0.00019983,2]
[337333839,1725609051880,-500.0,0.00019983,2]
[337333840,1725609051889,-500.0,0.00019983,2]
[337333841,1725609051899,-508.40093876,0.00019983,2]
[337333842,1725609051908,-500.0,0.00019983,2]
[337333843,1725609051917,-500.0,0.00019983,2]
[337333844,1725609051927,-500.0,0.00019983,2]
[337333845,1725609051937,-500.0,0.00019983,2]
[337333846,1725609051946,-500.0,0.00019983,2]
[337333847,1725609051956,-500.0,0.00019983,2]
[337333848,1725609051966,-500.0,0.00019983,2]
[337333849,1725609051975,-500.0,0.00019983,2]
[337333850,1725609051984,-500.0,0.00019983,2]
[337333851,1725609051993,-500.0,0.00019983,2]
[337333852,1725609052003,-500.0,0.00019983,2]
[337333853,1725609052012,-500.0,0.00019983,2]
[337333854,1725609052021,-500.0,0.00019983,2]
[337333855,1725609052031,-947.72,0.00019983,2]
[337333856,1725609052041,-500.0,0.00019983,2]
[337333857,1725609052052,-500.0,0.00019983,2]
[337333858,1725609052061,-646.37142205,0.00019983,2]
[337333859,1725609052070,-500.0,0.00019983,2]
[337333860,1725609052079,-731.75,0.00019983,2]
[337333861,1725609052089,-500.0,0.00019983,2]
[337333862,1725609052098,-500.0,0.00019983,2]
[337333863,1725609052108,-280.45760026,0.00019983,2]
[337333864,1725609052117,-1150.78,0.00019992,2]
[337333865,1725609052126,-1150.78,0.00019992,2]
[337333866,1725609052135,-1150.78,0.00019992,2]
[337333867,1725609052145,-1150.78,0.00019992,2]
[337333868,1725609052154,-1150.90053934,0.00019992,2]
[337333869,1725609052163,-150.112233,0.0002,3]
[337333870,1725609052172,-150.112233,0.0002,3]
[337333871,1725609052182,-150.112233,0.0002,2]
[337333872,1725609052191,-150.112233,0.0002,2]
[337333873,1725609052200,-150.112239,0.0002,2]
[337333874,1725609052210,-1293.19,0.0002,2]
[337333875,1725609052220,-1000.0,0.0002,20]
[337333876,1725609052230,-150.112233,0.0002,2]
[337333877,1725609052239,-150.112233,0.0002,2]
[337333878,1725609052248,-150.112233,0.0002,2]
[337333879,1725609052257,-150.112233,0.0002,3]
[337333880,1725609052266,-150.112233,0.0002,3]
[337333881,1725609052275,-150.112233,0.0002,4]
[337333882,1725609052285,-150.112233,0.000201,2]
[337333883,1725609052294,-150.112233,0.000201,4]
[337333884,1725609052312,-150.112233,0.000201,4]
[337333885,1725609052322,-150.112233,0.000201,3]
[337333886,1725609052331,-153.0,0.000201,2]
[337333887,1725609052340,-309.3082166,0.000201,2]
[337333888,1725609052350,-150.112233,0.000202,5]
[337333889,1725609052359,-150.112233,0.000202,2]
[337333890,1725609052368,-150.112233,0.000202,5]
[337333891,1725609052378,-500.0,0.00020214,2]
[337333892,1725609052387,-2104.94,0.00020214,2]
[337333893,1725609052488,-500.0,0.00020215,2]
[337333894,1725609052497,-517.26926809,0.00020215,2]
[337333895,1725609052507,-500.0,0.00020215,2]
[337333896,1725609052517,-500.0,0.00020215,2]
[337333897,1725609052526,-500.0,0.00020215,2]
[337333898,1725609052536,-500.0,0.00020215,2]
[337333899,1725609052544,-500.0,0.00020215,2]
[337333900,1725609052562,-500.0,0.00020215,2]
[337333901,1725609052572,-500.0,0.00020215,2]
[337333902,1725609052581,-513.88406102,0.00020215,2]
[337333903,1725609052591,-620.10982586,0.00020215,2]
[337333904,1725609052600,-500.0,0.00020215,2]
[337333905,1725609052609,-500.0,0.00020215,2]
[337333906,1725609052618,-500.0,0.00020215,2]
[337333907,1725609052627,-500.0,0.00020215,2]
[337333908,1725609052636,-500.0,0.00020215,2]
[337333909,1725609052646,-500.0,0.00020215,2]
[337333910,1725609052655,-500.0,0.00020215,2]
[337333911,1725609052665,-500.0,0.00020215,2]
[337333912,1725609052675,-500.0,0.00020215,2]
[337333913,1725609052683,-500.0,0.00020215,2]
[337333914,1725609052692,-602.16,0.00020215,2]
[337333915,1725609052702,-500.0,0.00020215,2]
[337333916,1725609052711,-500.0,0.00020215,2]
[337333917,1725609052721,-507.32608218,0.00020215,2]
[337333918,1725609052730,-500.0,0.00020215,2]
[337333919,1725609052739,-500.89669469,0.00020215,2]
[337333920,1725609052748,-500.0,0.00020215,2]
[337333921,1725609052758,-500.0,0.00020215,2]
[337333922,1725609052767,-500.0,0.00020215,2]
[337333923,1725609052776,-500.0,0.00020215,2]
[337333924,1725609052786,-500.0,0.00020215,2]
[337333925,1725609052795,-500.0,0.00020215,2]
[337333926,1725609052807,-500.0,0.00020215,2]
[337333927,1725609052816,-500.0,0.00020215,2]
[337333928,1725609052825,-500.0,0.00020215,2]
[337333929,1725609052834,-500.0,0.00020215,2]
[337333930,1725609052844,-500.0,0.00020215,2]
[337333931,1725609052854,-500.0,0.00020215,2]
[337333932,1725609052863,-500.0,0.00020215,2]
[337333933,1725609052872,-1248.82,0.00020215,2]
[337333934,1725609052882,-500.0,0.00020215,2]
[337333935,1725609052891,-500.0,0.00020215,2]
[337333936,1725609052900,-500.0,0.00020215,2]
[337333937,1725609052910,-575.37480007,0.00020215,2]
[337333938,1725609052919,-500.0,0.00020215,2]
[337333939,1725609052928,-500.0,0.00020215,2]
[337333940,1725609052938,-1025.87,0.00020215,2]
[337333941,1725609052948,-1609.37,0.00020215,2]
[337333942,1725609052958,-500.0,0.00020215,2]
[337333943,1725609052967,-500.0,0.00020215,2]
[337333944,1725609052977,-502.47586934,0.00020215,2]
[337333945,1725609052987,-5278.66,0.00020215,2]
[337333946,1725609052998,-2726.58,0.00020215,2]
[337333947,1725609053008,-1081.19,0.00020215,2]
[337333948,1725609053018,-500.0,0.00020215,2]
[337333949,1725609053027,-2214.63,0.00020215,2]
[337333950,1725609053037,-588.20591583,0.00020215,2]
[337333951,1725609053046,-200.0,0.00020215,2]
[337333952,1725609053063,-500.0,0.00020215,2]
[337333953,1725609053073,-500.0,0.00020215,2]
[337333954,1725609053082,-528.28439759,0.00020215,2]
[337333955,1725609053091,-500.0,0.00020215,2]
[337333956,1725609053101,-515.97,0.00020215,2]
[337333957,1725609053110,-500.0,0.00020215,2]
[337333958,1725609053119,-673.91,0.00020215,2]
[337333959,1725609053129,-1916.64,0.00020215,2]
[337333960,1725609053138,-7567.18,0.00020215,2]
[337333961,1725609053147,-500.0,0.00020215,2]
[337333962,1725609053157,-500.0,0.00020215,2]
[337333963,1725609053166,-2138.68,0.00020215,2]
[337333964,1725609053175,-500.0,0.00020215,2]
[337333965,1725609053184,-500.0,0.00020215,2]
[337333966,1725609053193,-500.0,0.00020215,2]
[337333967,1725609053202,-2163.74,0.00020215,2]
[337333968,1725609053212,-500.0,0.00020215,2]
[337333969,1725609053221,-500.0,0.00020215,2]
[337333970,1725609053231,-500.0,0.00020215,2]
[337333971,1725609053241,-500.0,0.00020215,2]
[337333972,1725609053250,-500.0,0.00020215,2]
[337333973,1725609053259,-2384.15,0.00020215,2]
[337333974,1725609053268,-500.0,0.00020215,2]
[337333975,1725609053277,-1332.97,0.00020215,2]
[337333976,1725609053286,-500.0,0.00020215,2]
[337333977,1725609053295,-1396.81,0.00020215,2]
[337333978,1725609053313,-1867.04,0.00020215,2]
[337333979,1725609053326,-500.0,0.00020215,2]
[337333980,1725609053336,-500.0,0.00020215,2]
[337333981,1725609053346,-500.0,0.00020215,2]
[337333982,1725609053355,-500.0,0.00020215,2]
[337333983,1725609053366,-500.0,0.00020215,2]
[337333984,1725609053375,-3381.51,0.00020215,2]
[337333985,1725609053384,-288.69228597,0.00020215,2]
[337333986,1725609053394,-500.0,0.00020225,2]
[337333987,1725609053403,-500.0,0.00020225,2]
[337333988,1725609053413,-500.0,0.00020225,2]
[337333989,1725609053421,-500.0,0.00020225,2]
[337333990,1725609053430,-500.0,0.00020225,2]
[337333991,1725609053439,-2559.54,0.00020225,2]
[337333992,1725609053448,-2376.73,0.00020225,2]
[337333993,1725609053457,-1152.74,0.00020225,2]
[337333994,1725609053466,-500.0,0.00020225,2]
[337333995,1725609053476,-910.85,0.00020225,2]
[337333996,1725609053486,-500.0,0.00020225,2]
[337333997,1725609053495,-500.0,0.00020225,2]
[337333998,1725609053505,-500.0,0.00020225,2]
[337333999,1725609053514,-500.0,0.00020225,2]
[337334000,1725609053524,-739.17,0.00020225,2]
[337334001,1725609053534,-500.0,0.00020225,2]
[337334002,1725609053543,-625.21062188,0.00020225,2]
[337334003,1725609053559,-500.0,0.00020225,2]
[337334004,1725609053568,-500.0,0.00020225,2]
[337334005,1725609053577,-500.0,0.00020225,2]
[337334006,1725609053587,-500.0,0.00020225,2]
[337334007,1725609053596,-500.0,0.00020225,2]
[337334008,1725609053605,-500.0,0.00020225,2]
[337334009,1725609053615,-500.0,0.00020225,2]
[337334010,1725609053624,-500.0,0.00020225,2]
[337334011,1725609053633,-500.0,0.00020225,2]
[337334012,1725609053642,-500.0,0.00020225,2]
[337334013,1725609053651,-500.0,0.00020225,2]
[337334014,1725609053661,-2366.75,0.00020225,2]
[337334015,1725609053670,-2472.65,0.00020225,2]
[337334016,1725609053679,-500.0,0.00020225,2]
[337334017,1725609053688,-613.65,0.00020225,2]
[337334018,1725609053698,-2669.67,0.00020225,2]
[337334019,1725609053707,-500.0,0.00020225,2]
[337334020,1725609053716,-1520.89,0.00020225,2]
[337334021,1725609053726,-1725.15,0.00020225,2]
[337334022,1725609053736,-500.0,0.00020225,2]
[337334023,1725609053745,-1608.1,0.00020225,2]
[337334024,1725609053754,-545.06,0.00020225,2]
[337334025,1725609053763,-2106.06,0.00020225,2]
[337334026,1725609053772,-500.0,0.00020225,2]
[337334027,1725609053781,-500.0,0.00020225,2]
[337334028,1725609053790,-1660.42,0.00020225,2]
[337334029,1725609053807,-23727.07,0.00020225,2]
[337334030,1725609053817,-1433.17,0.00020225,2]
[337334031,1725609053826,-3359.97,0.00020225,2]
[337334032,1725609053836,-500.0,0.00020225,2]
[337334033,1725609053845,-500.0,0.00020225,2]
[337334034,1725609053854,-2979.47,0.00020225,2]
[337334035,1725609053864,-3384.66,0.00020225,2]
[337334036,1725609053873,-1441.83,0.00020225,2]
[337334037,1725609053882,-522.13,0.00020225,2]
[337334038,1725609053891,-500.0,0.00020225,2]
[337334039,1725609053900,-500.0,0.00020225,2]
[337334040,1725609053909,-2714.43,0.00020225,2]
[337334041,1725609053918,-500.0,0.00020225,2]
[337334042,1725609053927,-500.0,0.00020225,2]
[337334043,1725609053937,-2153.93,0.00020225,2]
[337334044,1725609053946,-500.0,0.00020225,2]
[337334045,1725609053957,-546.03,0.00020225,2]
[337334046,1725609053966,-1318.69,0.00020225,2]
[337334047,1725609053976,-3625.89,0.00020225,2]
[337334048,1725609053985,-500.0,0.00020225,2]
[337334049,1725609053995,-3860.31,0.00020225,2]
[337334050,1725609054004,-500.0,0.00020225,2]
[337334051,1725609054014,-571.64414905,0.00020225,2]
[337334052,1725609054023,-500.0,0.00020225,2]
[337334053,1725609054032,-221.18392883,0.00020225,2]
[337334054,1725609054041,-500.0,0.00020225,2]
[337334055,1725609054054,-500.0,0.00020225,2]
[337334056,1725609054063,-500.0,0.00020225,2]
[337334057,1725609054073,-500.0,0.00020225,2]
[337334058,1725609054082,-1834.01,0.00020225,2]
[337334059,1725609054091,-500.0,0.00020225,2]
[337334060,1725609054100,-2029.8,0.00020225,2]
[337334061,1725609054109,-1153.86,0.00020225,2]
[337334062,1725609054119,-3466.27,0.00020225,2]
[337334063,1725609054128,-524.49,0.00020225,2]
[337334064,1725609054138,-1803.483243,0.00020225,2]
[337334065,1725609054148,-500.0,0.00020225,2]
[337334066,1725609054157,-500.0,0.00020225,2]
[337334067,1725609054166,-1327.05,0.00020225,2]
[337334068,1725609054176,-1803.483243,0.00020225,2]
[337334069,1725609054185,-784.27,0.00020225,2]
[337334070,1725609054195,-2610.45,0.00020225,2]
[337334071,1725609054204,-166.876144,0.00020225,2]
[337334072,1725609054213,-166.876144,0.00020225,2]
[337334073,1725609054223,-500.0,0.00020232,2]
[337334074,1725609054232,-500.0,0.00020232,2]
[337334075,1725609054241,-1104.78,0.00020232,2]
[337334076,1725609054250,-500.0,0.00020232,2]
[337334077,1725609054259,-500.0,0.00020232,2]
[337334078,1725609054268,-500.0,0.00020232,2]
[337334079,1725609054277,-3043.2,0.00020232,2]
[337334080,1725609054287,-654.5,0.00020232,2]
[337334081,1725609054296,-584.06221429,0.00020232,2]
[337334082,1725609054306,-500.0,0.00020232,2]
[337334083,1725609054316,-2620.2,0.00020232,2]
[337334084,1725609054328,-500.0,0.00020232,2]
[337334085,1725609054338,-500.0,0.00020232,2]
[337334086,1725609054347,-1698.59,0.00020232,2]
[337334087,1725609054357,-2084.64,0.00020232,2]
[337334088,1725609054366,-1038.27,0.00020232,2]
[337334089,1725609054375,-3706.21,0.00020232,2]
[337334090,1725609054384,-3707.68,0.00020232,2]
[337334091,1725609054394,-993.18,0.00020232,2]
[337334092,1725609054402,-500.0,0.00020232,2]
[337334093,1725609054412,-3539.11,0.00020232,2]
[337334094,1725609054421,-677.69,0.00020232,2]
[337334095,1725609054431,-500.0,0.00020232,2]
[337334096,1725609054441,-3088.96,0.00020232,2]
[337334097,1725609054450,-1148.66,0.00020232,2]
[337334098,1725609054459,-500.0,0.00020232,2]
[337334099,1725609054469,-586.11902289,0.00020232,2]
[337334100,1725609054478,-650.34,0.00020232,2]
[337334101,1725609054487,-47591.09,0.00020232,2]
[337334102,1725609054496,-500.0,0.00020232,2]
[337334103,1725609054609,-500.0,0.00020232,2]
[337334104,1725609054619,-720.39,0.00020232,2]
[337334105,1725609054627,-500.0,0.00020232,2]
[337334106,1725609054637,-500.0,0.00020232,2]
[337334107,1725609054646,-500.0,0.00020232,2]
[337334108,1725609054655,-977.89,0.00020232,2]
[337334109,1725609054664,-663.62,0.00020232,2]
[337334110,1725609054673,-736.66,0.00020232,2]
[337334111,1725609054683,-2669.91,0.00020232,2]
[337334112,1725609054692,-1000.0,0.00020232,2]
[337334113,1725609054701,-3261.27,0.00020232,2]
[337334114,1725609054710,-2916.84,0.00020232,2]
[337334115,1725609054720,-500.0,0.00020232,2]
[337334116,1725609054730,-500.0,0.00020232,2]
[337334117,1725609054739,-3005.03,0.00020232,2]
[337334118,1725609054748,-1905.12,0.00020232,2]
[337334119,1725609054757,-500.0,0.00020232,2]
[337334120,1725609054767,-500.0,0.00020232,2]
[337334121,1725609054776,-504.49757383,0.00020236,2]
[337334122,1725609054786,-581.17167965,0.00020236,2]
[337334123,1725609054795,-500.0,0.00020236,2]
[337334124,1725609054806,-503.27229465,0.00020236,2]
[337334125,1725609054815,-500.0,0.00020236,2]
[337334126,1725609054824,-500.0,0.00020236,2]